[Event "FIJ Cannes 2024"]
[Site "Cannes"]
[Date "2024.02.23"]
[Round "7.2"]
[White "Nogerbek, Kazybek"]
[Black "Roux, Baptiste"]
[Result "1-0"]
[ECO "D46"]
[WhiteElo "2463"]
[BlackElo "2331"]
[Annotator "RC"]
[PlyCount "123"]
[EventDate "2024.02.20"]
[EventType "swiss"]
[EventCountry "FRA"]
[SourceTitle "playchess.com"]
[Source "ChessBase"]
[SourceQuality "1"]
[TimeControl "40/5400+30:1800+30"]

1. d4 {[%emt 0:00:11]} d5 {[%emt 0:00:08]} 2. Nf3 {[%emt 0:00:15]} Nf6 {[%emt 0:00:10]} 3. c4 {[%emt 0:00:19]} c6 {[%emt 0:04:15]} 4. e3 {[%emt 0:03:13]} e6 {[%emt 0:05:41]} 5. Bd3 {[%emt 0:01:35]} Nbd7 {[%emt 0:00:52]} 6. O-O {[%emt 0:00:35]} dxc4 {[%emt 0:03:53]} 7. Bxc4 {[%emt 0:00:41]} Bd6 {[%emt 0:01:38]} 8. Nc3 {[%emt 0:04:32]} b5 {[%emt 0:01:59]} 9. Bb3 {[%emt 0:04:42]} b4 {[%emt 0:20:06]} 10. Na4 {[%emt 0:03:01]} O-O {[%emt 0:02:12]} 11. Qc2 {[%emt 0:06:45]} Ba6 {[%emt 0:02:57]} 12. Rd1 {[%emt 0:03:05]} Rc8 {[%emt 0:01:23]} 13. Bc4 {[%emt 0:17:24]} Bxc4 {[%emt 0:03:36]} 14. Qxc4 {[%emt 0:00:17]} Qa5 {[%emt 0:06:25]} 15. b3 {[%emt 0:02:09]} c5 {[%emt 0:03:47]} 16. Bb2 {[%emt 0:04:23]} cxd4 {[%emt 0:03:10]} 17. Qxd4 {[%emt 0:00:17]} Be7 {[%emt 0:00:53]} 18. Qd3 {[%emt 0:15:54]} Rfd8 {[%emt 0:11:26]} 19. Nd4 {[%emt 0:01:58]} Nb6 {[%emt 0:04:45]} 20. Nxb6 {[%emt 0:04:38]} Qxb6 {[%emt 0:00:04]} 21. Qe2 {[%emt 0:02:02]} Ne4 {[%emt 0:02:41]} 22. Rd3 {[%emt 0:09:28]} Bf6 {[%emt 0:04:16]} 23. Rad1 {[%emt 0:02:27]} Qa6 {[%emt 0:02:00]} 24. f3 {[%emt 0:02:54]} Nc3 {[%emt 0:04:18]} 25. Bxc3 {[%emt 0:00:11]} Rxc3 {[%emt 0:01:00]} 26. R3d2 {[%emt 0:01:58]} Qb6 {[%emt 0:02:50]} 27. Qb5 {[%emt 0:04:27]} Rxe3 {[%emt 0:02:53]} 28. Qxb6 {[%emt 0:00:06]} axb6 {[%emt 0:00:03]} 29. Nc2 {[%emt 0:00:38]} Rxd2 {[%emt 0:00:40]} 30. Rxd2 {[%emt 0:00:01]} Rc3 {[%emt 0:01:14]} 31. Nxb4 {[%emt 0:00:40]} g6 {[%emt 0:00:07]} 32. Rc2 {[%emt 0:01:30]} Re3 {[%emt 0:02:50]} 33. Kf2 {[%emt 0:00:50]} Re5 {[%emt 0:00:01]} 34. Nc6 {[%emt 0:00:39]} Rh5 {[%emt 0:00:24]} 35. h3 {[%emt 0:00:37]} Kf8 {[%emt 0:00:46]} 36. a4 {[%emt 0:00:41]} Rd5 {[%emt 0:01:21]} 37. Ke2 {[%emt 0:00:34]} Ke8 {[%emt 0:00:40]} 38. b4 {[%emt 0:01:46]} Kd7 {[%emt 0:00:31]} 39. a5 {[%emt 0:00:58]} bxa5 {[%emt 0:00:28]} 40. bxa5 {[%emt 0:00:01]} Rd6 {[%emt 0:01:35]} 41. Nb8+ {[%emt 0:30:21]} Kd8 {[%emt 0:05:54]} 42. a6 {[%emt 0:00:00]} Bd4 {[%emt 0:00:15]} 43. Nc6+ {[%emt 0:00:00]} Kd7 {[%emt 0:01:09]} 44. Nxd4 {[%emt 0:00:00]} Rxa6 {[%emt 0:00:01]} 45. f4 {[%emt 0:00:00]} Ra4 {[%emt 0:01:30]} 46. Rd2 {[%emt 0:00:00]} Ke7 {[%emt 0:00:14]} 47. Nc6+ {[%emt 0:00:00]} Kf6 {[%emt 0:00:12]} 48. Rd7 {[%emt 0:00:00]} Rxf4 {[%emt 0:01:20]} 49. Nd8 {[%emt 0:00:00]} Ke5 {[%emt 0:01:16]} 50. Rxf7 {[%emt 0:00:00]} Re4+ {[%emt 0:00:05]} 51. Kf3 {[%emt 0:00:00]} Rh4 {[%emt 0:00:11]} 52. Ra7 {[%emt 0:00:00]} Rf4+ {[%emt 0:00:51]} 53. Kg3 {[%emt 0:00:00]} Rf8 {[%emt 0:00:04]} 54. Nf7+ {[%emt 0:00:00]} Kf6 {[%emt 0:00:17]} 55. Nh6 {[%emt 0:00:00]} g5 {[%emt 0:00:16]} 56. Ng4+ {[%emt 0:00:00]} Kg6 {[%emt 0:00:07]} 57. Ne5+ {[%emt 0:00:00]} Kf5 {[%emt 0:00:34]} 58. Ra5 {[%emt 0:00:00]} Rg8 {[%emt 0:00:54]} 59. Nf3+ {[%emt 0:00:00]} Kf6 {[%emt 0:00:08]} 60. Kg4 {[%emt 0:00:00]} h5+ {[%emt 0:00:20]} 61. Kxh5 {[%emt 0:00:00]} g4 {[%emt 0:00:06]} 62. Rg5 {[%emt 0:00:00]} 1-0

[Event "FIJ Cannes 2024"]
[Site "Cannes"]
[Date "2024.02.23"]
[Round "7.3"]
[White "Bharath Subramaniyam H"]
[Black "Can, Isik"]
[Result "1-0"]
[ECO "B44"]
[WhiteElo "2515"]
[BlackElo "2500"]
[Annotator "RC"]
[PlyCount "149"]
[EventDate "2024.02.20"]
[EventType "swiss"]
[EventCountry "FRA"]
[SourceTitle "playchess.com"]
[Source "ChessBase"]
[SourceQuality "1"]
[TimeControl "40/5400+30:1800+30"]

1. e4 {[%emt 0:05:46]} c5 {[%emt 0:03:17]} 2. Nf3 {[%emt 0:00:12]} e6 {[%emt 0:00:04]} 3. d4 {[%emt 0:00:20]} cxd4 {[%emt 0:00:04]} 4. Nxd4 {[%emt 0:00:09]} Nc6 {[%emt 0:00:04]} 5. Nb5 {[%emt 0:00:23]} d6 {[%emt 0:01:47]} 6. c4 {[%emt 0:00:58]} a6 {[%emt 0:06:33]} 7. N5c3 {[%emt 0:00:55]} Nf6 {[%emt 0:00:37]} 8. Be2 {[%emt 0:01:21]} Be7 {[%emt 0:00:50]} 9. O-O {[%emt 0:00:31]} O-O {[%emt 0:01:15]} 10. Bf4 {[%emt 0:00:43]} b6 {[%emt 0:12:26]} 11. Re1 {[%emt 0:01:02]} Bb7 {[%emt 0:00:13]} 12. Nd2 {[%emt 0:00:09]} Rc8 {[%emt 0:02:06]} 13. Rc1 {[%emt 0:06:05]} Ne5 {[%emt 0:02:12]} 14. Bf1 {[%emt 0:09:16]} Qc7 {[%emt 0:04:21]} 15. h3 {[%emt 0:13:54]} Qb8 {[%emt 0:01:49]} 16. Qe2 {[%emt 0:01:55]} Bd8 {[%emt 0:07:35]} 17. b4 {[%emt 0:05:57]} Bc7 {[%emt 0:03:37]} 18. Bxe5 {[%emt 0:07:14]} dxe5 {[%emt 0:02:00]} 19. Qe3 {[%emt 0:00:15]} Nd7 {[%emt 0:11:11]} 20. Nb3 {[%emt 0:03:04]} Rfd8 {[%emt 0:08:54]} 21. a3 {[%emt 0:05:54]} h6 {[%emt 0:00:38]} 22. Red1 {[%emt 0:09:39]} Nf6 {[%emt 0:01:45]} 23. c5 {[%emt 0:08:58]} Rxd1 {[%emt 0:06:38]} 24. Rxd1 {[%emt 0:00:02]} b5 {[%emt 0:00:27]} 25. Bd3 {[%emt 0:03:15]} Bc6 {[%emt 0:01:17]} 26. Qe2 {[%emt 0:00:28]} Rd8 {[%emt 0:05:25]} 27. Bc2 {[%emt 0:00:32]} Rxd1+ {[%emt 0:01:08]} 28. Qxd1 {[%emt 0:00:22]} g6 {[%emt 0:03:45]} 29. Nc1 {[%emt 0:02:24]} Kg7 {[%emt 0:00:22]} 30. N1a2 {[%emt 0:02:01]} h5 {[%emt 0:01:35]} 31. h4 {[%emt 0:04:02]} Qb7 {[%emt 0:06:51]} 32. Qe2 {[%emt 0:00:24]} Nd7 {[%emt 0:00:32]} 33. Bd3 {[%emt 0:05:00]} Nb8 {[%emt 0:00:16]} 34. Qd1 {[%emt 0:00:46]} Be8 {[%emt 0:00:52]} 35. a4 {[%emt 0:01:43]} bxa4 {[%emt 0:00:06]} 36. Bc2 {[%emt 0:01:20]} a5 {[%emt 0:02:01]} 37. Bxa4 {[%emt 0:00:58]} axb4 {[%emt 0:00:02]} 38. Bxe8 {[%emt 0:00:01]} bxc3 {[%emt 0:00:05]} 39. Nxc3 {[%emt 0:00:01]} Qb4 {[%emt 0:01:20]} 40. Qf3 {[%emt 0:00:31]} f6 {[%emt 0:01:29]} 41. Qg3 {[%emt 0:30:37]} g5 {[%emt 0:31:19]} 42. hxg5 {[%emt 0:00:28]} Qxc5 {[%emt 0:00:00]} 43. gxf6+ {[%emt 0:00:00]} Kxf6 {[%emt 0:00:00]} 44. Bxh5 {[%emt 0:00:00]} Nd7 {[%emt 0:00:00]} 45. Qg6+ {[%emt 0:00:00]} Ke7 {[%emt 0:00:00]} 46. Qf7+ {[%emt 0:00:00]} Kd6 {[%emt 0:00:00]} 47. Bg4 {[%emt 0:00:00]} Qxc3 {[%emt 0:00:00]} 48. Qxe6+ {[%emt 0:00:00]} Kc5 {[%emt 0:00:00]} 49. Qxd7 {[%emt 0:00:00]} Qc1+ {[%emt 0:00:00]} 50. Bd1 {[%emt 0:00:00]} Kb4 {[%emt 0:00:00]} 51. g3 {[%emt 0:00:00]} Bb6 {[%emt 0:00:00]} 52. Qa4+ {[%emt 0:00:00]} Kc5 {[%emt 0:00:00]} 53. Kg2 {[%emt 0:00:00]} Qc4 {[%emt 0:00:00]} 54. Qa3+ {[%emt 0:00:00]} Qb4 {[%emt 0:00:00]} 55. Qf3 {[%emt 0:00:00]} Qd4 {[%emt 0:00:00]} 56. Bb3 {[%emt 0:00:00]} Kb4 {[%emt 0:00:00]} 57. Bd5 {[%emt 0:00:00]} Qc3 {[%emt 0:00:00]} 58. Qf6 {[%emt 0:00:00]} Bd4 {[%emt 0:00:00]} 59. g4 {[%emt 0:00:29]} Qc8 {[%emt 0:00:00]} 60. Qf3 {[%emt 0:02:42]} Qc1 {[%emt 0:00:00]} 61. Qf8+ {[%emt 0:00:16]} Ka5 {[%emt 0:00:04]} 62. Qf5 {[%emt 0:02:25]} Qd2 {[%emt 0:03:10]} 63. g5 {[%emt 0:00:24]} Kb4 {[%emt 0:00:01]} 64. g6 {[%emt 0:01:34]} Qh6 {[%emt 0:00:01]} 65. Qg4 {[%emt 0:01:11]} Qg7 {[%emt 0:00:01]} 66. Bf7 {[%emt 0:03:00]} Kc3 {[%emt 0:03:22]} 67. Qh4 {[%emt 0:00:33]} Kd3 {[%emt 0:01:12]} 68. f3 {[%emt 0:00:42]} Bc5 {[%emt 0:03:12]} 69. Kg3 {[%emt 0:00:45]} Bf8 {[%emt 0:00:48]} 70. Kg4 {[%emt 0:00:22]} Ke2 {[%emt 0:00:45]} 71. Qh2+ {[%emt 0:00:45]} Kd3 {[%emt 0:00:09]} 72. Kf5 {[%emt 0:00:13]} Ke3 {[%emt 0:00:57]} 73. Qh7 {[%emt 0:01:09]} Kxf3 {[%emt 0:01:09]} 74. Qxg7 {[%emt 0:00:01]} Bxg7 {[%emt 0:00:02]} 75. Bd5 {[%emt 0:00:15]} 1-0

[Event "FIJ Cannes 2024"]
[Site "Cannes"]
[Date "2024.02.23"]
[Round "7.4"]
[White "Tarhan, Adar"]
[Black "Sasikiran, Krishnan"]
[Result "1-0"]
[ECO "D00"]
[WhiteElo "2420"]
[BlackElo "2586"]
[Annotator "TA"]
[PlyCount "73"]
[EventDate "2024.02.20"]
[EventType "swiss"]
[EventCountry "FRA"]
[SourceTitle "playchess.com"]
[Source "ChessBase"]
[SourceQuality "1"]
[TimeControl "40/5400+30:1800+30"]

{[%evp 19,73,22,33,33,41,31,18,8,17,19,16,12,5,9,5,20,33,37,41,46,86,73,98,85,84,79,149,142,153,104,118,71,60,65,94,89,86,27,286,68,591,588,720,708,710,707,884,861,947,968,921,891,29991,29992,29996,29997]} 1. c3 {[%emt 1:31:00]} Nf6 {[%emt 1:31:00]} 2. d4 {[%emt 0:00:30]} g6 {[%emt 0:00:30]} 3. Bg5 {[%emt 0:00:30]} Bg7 {[%emt 0:00:30]} 4. Nd2 {[%emt 0:00:30]} d5 {[%emt 0:00:30]} 5. e3 {[%emt 0:00:30]} Nbd7 {[%emt 0:00:30]} 6. Ngf3 {[%emt 0:00:30] D00: 1 d4 d5: Unusual lines.} h6 {[%emt 0:00:30]} 7. Bh4 {[%emt 0:00:30]} g5 {[%emt 0:00:30]} 8. Bg3 {[%emt 0:00:30]} Nh5 {[%emt 0:00:30]} 9. Bd3 {[%emt 0:00:30]} Nxg3 {[%emt 0:00:30]} 10. hxg3 {[%emt 0:00:30]} e6 {[%emt 0:00:30]} 11. Qe2 {[%emt 0:00:30]} c5 $146 {[%emt 0:00:30]} ({Predecessor:} 11... c6 12. e4 Qb6 13. O-O-O a6 14. Kb1 Qc7 15. c4 g4 16. Nh2 dxc4 17. Nxc4 {1-0 Orso,M (2355)-Lanc,A (2410) Decin-11 1982 (4)}) 12. O-O-O {[%emt 0:00:30]} Qc7 {[%emt 0:00:30]} 13. Kb1 {[%emt 0:00:30]} c4 {[%emt 0:00:30]} 14. Bc2 {[%emt 0:00:30]} b5 {[%emt 0:00:30]} 15. e4 {[%emt 0:00:30]} Bb7 {[%emt 0:00:30]} 16. exd5 {[%emt 0:00:30]} Bxd5 {[%emt 0:00:30]} 17. Be4 {[%emt 0:00:30]} O-O-O {[%emt 0:00:30]} 18. Bxd5 {[%emt 0:00:30]} exd5 {[%emt 0:00:30]} 19. Nf1 {[%emt 0:00:30]} Nb6 {[%emt 0:00:30]} 20. Ne3 {[%emt 0:00:30]} f6 {[%emt 0:00:30]} 21. Rde1 {[%emt 0:00:30]} Rhe8 {[%emt 0:00:30]} 22. Qc2 {[%emt 0:00:30]} Kb8 {[%emt 0:00:30]} (22... Qf7 $142) 23. Qg6 $16 {[%emt 0:00:30]} Bf8 {[%emt 0:00:30]} 24. Nf5 {[%emt 0:00:30]} (24. Qxf6 $142 b4 25. cxb4 (25. Ne5 Bd6 $16)) 24... Rxe1+ $16 {[%emt 0:00:30]} 25. Rxe1 {[%emt 0:00:30]} ({White should play} 25. Nxe1 b4 26. cxb4 (26. Nxh6 bxc3 27. Qxf6 cxb2 $19)) 25... b4 $16 {[%emt 0:00:30]} 26. Qxf6 {[%emt 0:00:30]} (26. Nxh6 bxc3 27. bxc3 (27. Qxf6 $2 cxb2 28. Ne5 Rc8 $19) 27... Na4 $17) 26... bxc3 {[%emt 0:00:30]} 27. bxc3 {[%emt 0:00:30]} (27. Nxh6 $2 cxb2 28. Kxb2 Rc8 $19) 27... Na4 {[%emt 0:00:30]} 28. Kc2 {[%emt 0:00:30]} (28. Nxh6 Qb7+ (28... Nxc3+ 29. Kc2 $17) (28... Nxc3+ 29. Kc2 $19)) (28. Qa6 $1 $16 {[%cal Ra6a4]} Qd7 (28... Nxc3+ $2 29. Kc2 $18) 29. Re6 Nxc3+ 30. Kb2 Na4+ 31. Kc1) 28... Nxc3 $2 {[%emt 0:00:30][%mdl 8192] [#]} (28... Qa5 $1 $11 {and Black has nothing to worry.} 29. Rb1+ (29. Nxh6 $2 Qxc3+ 30. Kd1 Nb2+ 31. Ke2 Qd3#) 29... Kc7 30. Qe5+ (30. Nxh6 Qxc3+ 31. Kd1 Qd3+ 32. Nd2 Nc3+ 33. Kc1 Ba3+ 34. Rb2 Bxb2+ 35. Kxb2 Rb8+) (30. Qf7+ Rd7 $11) 30... Bd6) 29. Ne5 $2 {[%emt 0:00:30]} (29. Kxc3 Qa5+ 30. Kb2 Rc8 $15) (29. Nxh6 Nxa2 30. Nf5 Nb4+ 31. Kd1 g4 $19) (29. Qa6 $1 $18 Ne4 30. Ne5 (30. Nxh6 Rd6 $15)) 29... Rc8 $2 {[%emt 0:00:30][%mdl 8192] [#]} (29... Kb7 $1 $14) 30. Qa6 $1 $18 {[%emt 0:00:30]} (30. Kxc3 $2 Qa5+ 31. Kc2 Qxe1 $19) (30. Nxh6 $2 Nb5 31. Qa6 (31. Qxg5 $2 Nxd4+ 32. Kc3 Qa5+ 33. Kxd4 Bc5+ 34. Kxd5 Be7+ 35. Ke4 Bxg5 $19) 31... Nxd4+ 32. Kc3 Bb4+ 33. Kxb4 Nc2+ 34. Kc3 Nxe1 $19) 30... Ne4 {[%emt 0:00:30]} 31. Rb1+ {[%emt 0:00:30]} (31. Nxh6 Bxh6 32. Qe6 (32. Qxh6 $2 Qa5 $19) 32... Nc3 33. Qxh6 (33. Nd7+ Ka8 $11) 33... Qa5 34. Qd6+ (34. Qxg5 $2 Nxa2 35. Qf6 Ka8 $19) (34. Nc6+ Rxc6 35. Qxc6 Qxa2+ 36. Kxc3 Qb3+ 37. Kd2 Qb2+ 38. Kd1 Qb1+ 39. Kd2 Qb2+ 40. Kd1 Qb3+ 41. Kc1 Qc3+ 42. Kd1 Qb3+ 43. Kc1 Qc3+ 44. Kd1 Qxd4+ 45. Kc2 Qd3+ 46. Kc1 Qc3+ 47. Kd1 Qd4+ 48. Kc2 Qd3+ 49. Kc1 Qc3+ 50. Kd1 Qb3+ 51. Kd2 Qb2+ 52. Kd1 Qb3+ 53. Kd2 Qb2+ 54. Kd1 Qd4+ $11) 34... Ka8 $11) 31... Ka8 {[%emt 0:00:30]} 32. Qe6 {[%emt 0:00:30]} ({Worse is} 32. Nxh6 Bxh6 33. Qe6 (33. Qxh6 $2 {perishes.} Qa5 $19) 33... Nd6 34. Qxd5+ (34. Qxh6 $2 Nf5 $19) 34... Nb7 $11) 32... Rd8 {[%emt 0:00:30]} 33. Nc6 {[%emt 0:00:30]} ({Inferior is} 33. Nxh6 Rd6 34. Qe8+ Rd8 $11) 33... Rc8 {[%emt 0:00:30]} 34. Nfe7 {[%emt 0:00:30]} Bxe7 {[%emt 0:00:30]} 35. Nxe7 {[%emt 0:00:30]} Rd8 {[%emt 0:00:30]} 36. Nxd5 {[%emt 0:00:30]} Qd7 {[%emt 0:00:30]} 37. Nc7+ {[%emt 0:00:30]} 1-0

[Event "FIJ Cannes 2024"]
[Site "Cannes"]
[Date "2024.02.23"]
[Round "7.5"]
[White "Racle, Valentin"]
[Black "Clotet Mas, Dan"]
[Result "1-0"]
[ECO "D31"]
[WhiteElo "2086"]
[BlackElo "1938"]
[Annotator "NA RC"]
[PlyCount "55"]
[EventDate "2024.02.20"]
[EventType "swiss"]
[EventCountry "FRA"]
[SourceTitle "playchess.com"]
[Source "ChessBase"]
[SourceQuality "1"]
[TimeControl "40/5400+30:1800+30"]

1. d4 {[%emt 1:31:00]} d5 {[%emt 1:31:00]} 2. c4 {[%emt 0:00:30]} e6 {[%emt 0:00:30]} 3. Nc3 {[%emt 0:00:30]} a6 {[%emt 0:00:30]} 4. cxd5 {[%emt 0:00:30]} exd5 {[%emt 0:00:30]} 5. Bf4 {[%emt 0:00:30]} Nf6 {[%emt 0:00:30]} 6. e3 {[%emt 0:00:30]} Bd6 {[%emt 0:00:30]} 7. Bg5 {[%emt 0:00:30]} c6 {[%emt 0:00:30]} 8. Bd3 {[%emt 0:00:30]} Nbd7 {[%emt 0:00:30]} 9. Nge2 {[%emt 0:00:30]} h6 {[%emt 0:00:30]} 10. Bh4 {[%emt 0:00:30]} Qb6 {[%emt 0:00:30]} 11. Qc2 {[%emt 0:00:30]} O-O {[%emt 0:00:30]} 12. O-O {[%emt 0:00:30]} Re8 {[%emt 0:00:30]} 13. Rad1 $11 {[%emt 0:00:30]} Bf8 {[%emt 0:00:30]} 14. Qd2 {[%emt 0:00:30]} g5 {[%emt 0:00:30]} 15. Bg3 {[%emt 0:00:30]} Bg7 {[%emt 0:00:30]} 16. f3 {[%emt 0:00:30]} Nf8 {[%emt 0:00:30]} 17. Kh1 {[%emt 0:00:30]} Qd8 {[%emt 0:00:30]} 18. Bb1 {[%emt 0:00:30]} Ng6 {[%emt 0:00:30]} 19. e4 {[%emt 0:00:30]} dxe4 {[%emt 0:00:30]} 20. fxe4 {[%emt 0:00:30]} Bg4 {[%emt 0:00:30]} 21. e5 {[%emt 0:00:30]} Nh5 {[%emt 0:00:30]} 22. Qd3 {[%emt 0:00:30]} b5 {[%emt 0:00:30]} 23. Rxf7 {[%emt 0:00:30]} Kxf7 {[%emt 0:00:30]} 24. Qxg6+ {[%emt 0:00:30]} Kg8 {[%emt 0:00:30]} 25. Rf1 {[%emt 0:00:30]} Nf4 {[%emt 0:00:30]} 26. Nxf4 {[%emt 0:00:30]} Rf8 {[%emt 0:00:30]} 27. Qh7+ {[%emt 0:00:30]} Kf7 {[%emt 0:00:30]} 28. Bg6+ {[%emt 0:00:30]} 1-0

[Event "FIJ Cannes 2024"]
[Site "Cannes"]
[Date "2024.02.23"]
[Round "7.6"]
[White "Tran Amar, Charlie"]
[Black "Roberts, Tallulah"]
[Result "0-1"]
[ECO "C01"]
[WhiteElo "1188"]
[BlackElo "1488"]
[Annotator "NA RC"]
[PlyCount "136"]
[EventDate "2024.02.20"]
[EventType "swiss"]
[EventCountry "FRA"]
[SourceTitle "playchess.com"]
[Source "ChessBase"]
[SourceQuality "1"]
[TimeControl "40/5400+30:1800+30"]

1. e4 {[%emt 0:00:02]} e6 {[%emt 0:00:02]} 2. d4 {[%emt 0:00:09]} d5 {[%emt 0:00:01]} 3. exd5 {[%emt 0:00:12]} exd5 {[%emt 0:00:03]} 4. Nf3 {[%emt 0:00:18]} Bd6 {[%emt 0:00:10]} 5. Be3 {[%emt 0:00:34]} Ne7 {[%emt 0:00:21]} 6. c3 {[%emt 0:00:31]} Bf5 {[%emt 0:00:35]} 7. Nbd2 {[%emt 0:01:26]} c6 {[%emt 0:00:32]} 8. Be2 {[%emt 0:00:40]} O-O {[%emt 0:00:52]} 9. O-O {[%emt 0:00:10]} Na6 {[%emt 0:03:26]} 10. Nh4 {[%emt 0:02:19]} Be6 {[%emt 0:01:48]} 11. Bd3 {[%emt 0:00:41]} Ng6 {[%emt 0:08:00]} 12. Nxg6 {[%emt 0:02:27]} hxg6 {[%emt 0:00:19]} 13. Nf3 {[%emt 0:00:48]} Nc7 {[%emt 0:03:50]} 14. Qc2 {[%emt 0:00:53]} Ne8 {[%emt 0:21:28]} 15. Ng5 {[%emt 0:04:46]} Qf6 {[%emt 0:04:59]} 16. f4 {[%emt 0:11:36]} Bf5 {[%emt 0:02:13]} 17. Qf2 {[%emt 0:05:09]} Qe7 {[%emt 0:04:53]} 18. Bxf5 {[%emt 0:01:33]} gxf5 {[%emt 0:00:19]} 19. Rae1 {[%emt 0:00:18]} Nf6 {[%emt 0:02:35]} 20. Qh4 {[%emt 0:01:00]} g6 {[%emt 0:03:12]} 21. Qh6 {[%emt 0:01:26]} Rfe8 {[%emt 0:00:35]} 22. Rf3 {[%emt 0:00:28]} Qf8 {[%emt 0:00:19]} 23. Qh4 {[%emt 0:04:21]} Qg7 {[%emt 0:07:29]} 24. Ref1 {[%emt 0:04:14]} Kf8 {[%emt 0:05:45]} 25. c4 {[%emt 0:05:55]} Ke7 {[%emt 0:05:29]} 26. cxd5 {[%emt 0:01:16]} Rh8 {[%emt 0:00:57]} 27. Qe1 {[%emt 0:00:25]} Nxd5 {[%emt 0:01:05]} 28. Bd2+ {[%emt 0:01:06]} Kd7 {[%emt 0:00:30]} 29. Rd3 {[%emt 0:04:25]} Rae8 {[%emt 0:01:38]} 30. Qd1 {[%emt 0:01:17]} f6 {[%emt 0:04:49]} 31. Nf3 {[%emt 0:05:47]} Re4 {[%emt 0:06:24]} 32. Qb3 {[%emt 0:02:53]} Kc8 {[%emt 0:01:10]} 33. Rc1 {[%emt 0:00:42]} Nxf4 {[%emt 0:01:32]} 34. Bxf4 {[%emt 0:01:23]} Bxf4 {[%emt 0:00:43]} 35. Rc2 {[%emt 0:01:57]} Qe7 {[%emt 0:01:41]} 36. Kf2 {[%emt 0:01:13]} g5 {[%emt 0:00:57]} 37. Rdc3 {[%emt 0:06:36]} g4 {[%emt 0:03:46]} 38. Qb5 {[%emt 0:04:14]} g3+ {[%emt 0:03:32]} 39. hxg3 {[%emt 0:00:44]} Bc7 {[%emt 0:01:20]} 40. Qxf5+ {[%emt 0:01:40]} Kb8 {[%emt 0:00:24]} 41. Rb3 {[%emt 0:30:47]} Rg8 {[%emt 0:30:46]} 42. Ne5 {[%emt 0:05:23]} fxe5 {[%emt 0:00:00]} 43. Qxe4 {[%emt 0:00:00]} Qf7+ {[%emt 0:00:00]} 44. Kg1 {[%emt 0:00:00]} exd4 {[%emt 0:00:00]} 45. Rf2 {[%emt 0:00:00]} Qd7 {[%emt 0:00:00]} 46. Rb4 {[%emt 0:00:00]} Bb6 {[%emt 0:00:00]} 47. Qd3 {[%emt 0:00:00]} Qe7 {[%emt 0:00:00]} 48. Rb3 {[%emt 0:00:00]} Qe1+ {[%emt 0:00:00]} 49. Qf1 {[%emt 0:00:00]} Qe7 {[%emt 0:00:00]} 50. Rd3 {[%emt 0:00:00]} Qh7 {[%emt 0:00:00]} 51. Rf7 {[%emt 0:00:00]} Qg6 {[%emt 0:00:00]} 52. Qf4+ {[%emt 0:00:00]} Ka8 {[%emt 0:00:00]} 53. Rf8+ {[%emt 0:00:00]} Bd8 {[%emt 0:00:00]} 54. Rxg8 {[%emt 0:00:00]} Qxg8 {[%emt 0:07:01]} 55. Qxd4 {[%emt 0:00:00]} Bb6 {[%emt 0:00:00]} 56. Qxb6 {[%emt 0:00:00]} axb6 {[%emt 0:00:00]} 57. Kf2 {[%emt 0:00:00]} Qf8+ {[%emt 0:00:00]} 58. Ke3 {[%emt 0:00:00]} Kb8 {[%emt 0:00:00]} 59. g4 {[%emt 0:00:00]} Qf6 {[%emt 0:00:00]} 60. b3 {[%emt 0:00:00]} Kc7 {[%emt 0:00:00]} 61. Rd4 {[%emt 0:00:00]} Qe5+ {[%emt 0:00:00]} 62. Re4 {[%emt 0:00:00]} Qg3+ {[%emt 0:00:00]} 63. Kd4 {[%emt 0:00:00]} Kd6 {[%emt 0:00:00]} 64. Kc4 {[%emt 0:00:00]} Qxg2 {[%emt 0:00:00]} 65. Rd4+ {[%emt 0:00:00]} Ke5 {[%emt 0:00:46]} 66. Kc3 {[%emt 0:00:28]} Qxa2 {[%emt 0:01:01]} 67. Rd2 {[%emt 0:00:31]} Qa5+ {[%emt 0:00:42]} 68. b4 {[%emt 0:00:28]} Qa3+ {[%emt 0:00:37]} 0-1

[Event "FIJ Cannes 2024"]
[Site "Cannes"]
[Date "2024.02.24"]
[Round "8.1"]
[White "Nogerbek, Kazybek"]
[Black "Bharath Subramaniyam H"]
[Result "1/2-1/2"]
[ECO "D38"]
[WhiteElo "2463"]
[BlackElo "2515"]
[Annotator "TA"]
[PlyCount "34"]
[EventDate "2024.02.20"]
[EventType "swiss"]
[EventCountry "FRA"]
[SourceTitle "playchess.com"]
[Source "ChessBase"]
[SourceQuality "1"]
[TimeControl "40/5400+30:1800+30"]

{[%evp 20,34,27,16,12,5,4,0,0,0,0,-8,0,0,0,-2,0]} 1. d4 {[%emt 0:00:05]} Nf6 {[%emt 0:07:07]} 2. c4 {[%emt 0:00:14]} e6 {[%emt 0:00:45]} 3. Nf3 {[%emt 0:00:09]} d5 {[%emt 0:00:06]} 4. Nc3 {[%emt 0:00:07]} Bb4 {[%emt 0:00:33]} 5. Bg5 {[%emt 0:02:18]} h6 {[%emt 0:01:05]} 6. Bxf6 {[%emt 0:00:13]} Qxf6 {[%emt 0:00:18]} 7. e3 {[%emt 0:00:11]} O-O {[%emt 0:02:16]} 8. Rc1 {[%emt 0:00:48]} dxc4 {[%emt 0:11:13]} 9. Bxc4 {[%emt 0:00:11]} c5 {[%emt 0:00:13]} 10. O-O {[%emt 0:00:17]} cxd4 {[%emt 0:01:43]} 11. Nxd4 {[%emt 0:00:28]} Bd7 {[%emt 0:07:05][%cal Bc8d7,Bd7c6,Bc6d5][%mdl 32] The position is equal.} 12. Qb3 {[%emt 0:00:43]} Nc6 {[%emt 0:02:11]} 13. Nxc6 {[%emt 0:00:09]} Bxc3 {[%emt 0:00:14]} 14. Rxc3 {[%emt 0:00:02]} Bxc6 {[%emt 0:00:13]} 15. Bb5 {[%emt 0:00:04]} Bd5 {[%emt 0:01:28]} 16. Bc4 {[%emt 0:00:07]} Bc6 {[%emt 0:01:17]} 17. Bb5 {[%emt 0:00:11]} Bd5 {[%emt 0:00:38] A rather calm draw.   Weighted Error Value: White=0.03 (flawless) /Black=0.00 (flawless) .  OK:         	White=3     	Black=4} 1/2-1/2